[Event "World Senior chT-50 2019"]
[Site "Rhodes"]
[Date "2019.04.16"]
[Round "1.37"]
[White "Strutinskaia, Galina"]
[Black "Zimmermann, Rolf"]
[Result "1/2-1/2"]
[ECO "E06"]
[WhiteElo "2208"]
[BlackElo "2086"]
[Annotator "NA"]
[PlyCount "156"]
[EventDate "2019.04.16"]
[EventType "team-tourn"]
[EventCountry "GRE"]
[SourceTitle "playchess.com"]
[Source "ChessBase"]
[SourceQuality "1"]
[WhiteTeam "Russia"]
[BlackTeam "Germany"]
[WhiteTeamCountry "RUS"]
[BlackTeamCountry "GER"]
[TimeControl "40/5400+30:1800+30"]

1. d4 {[%emt 0:00:00]} d5 {[%emt 0:00:00]} 2. c4 {[%emt 0:00:00]} e6 {[%emt 0:00:00]} 3. Nf3 {[%emt 0:00:32]} Nf6 {[%emt 0:00:16]} 4. g3 {[%emt 0:00:27]} Be7 {[%emt 0:02:30]} 5. Bg2 {[%emt 0:00:06]} O-O {[%emt 0:00:12]} 6. O-O {[%emt 0:00:18]} c6 {[%emt 0:04:23]} 7. Qc2 {[%emt 0:04:30]} b6 {[%emt 0:05:50]} 8. b3 {[%emt 0:04:33]} Bb7 {[%emt 0:00:22]} 9. Nc3 {[%emt 0:05:01]} Nbd7 {[%emt 0:01:16]} 10. cxd5 {[%emt 0:01:49]} cxd5 {[%emt 0:02:44]} 11. Bf4 {[%emt 0:01:36]} Rc8 {[%emt 0:00:14]} 12. Qb2 {[%emt 0:00:25]} Nh5 {[%emt 0:09:51]} 13. Bd2 {[%emt 0:02:20]} Bd6 {[%emt 0:00:07]} 14. Nb5 {[%emt 0:02:14]} Bb8 {[%emt 0:01:31]} 15. Bb4 {[%emt 0:00:51]} Re8 {[%emt 0:00:02]} 16. Nd6 {[%emt 0:00:25]} Bxd6 {[%emt 0:00:11]} 17. Bxd6 {[%emt 0:00:05]} Rc6 {[%emt 0:00:51]} 18. Ba3 {[%emt 0:03:01]} Qa8 {[%emt 0:00:45]} 19. Rfd1 {[%emt 0:02:22]} Rec8 {[%emt 0:02:01]} 20. Qd2 {[%emt 0:05:20]} Nhf6 {[%emt 0:01:48]} 21. Qf4 {[%emt 0:03:06]} Ne4 {[%emt 0:13:40]} 22. Bf1 {[%emt 0:06:05]} Ba6 {[%emt 0:03:21]} 23. Bb4 {[%emt 0:11:16]} Qb8 {[%emt 0:15:02]} 24. Qxb8 {[%emt 0:04:04]} Rxb8 {[%emt 0:00:27]} 25. Ne1 {[%emt 0:02:16]} Rbc8 {[%emt 0:01:09]} 26. a4 {[%emt 0:00:49]} Bb7 {[%emt 0:13:24]} 27. f3 {[%emt 0:03:04]} Nd6 {[%emt 0:05:03]} 28. Kf2 {[%emt 0:01:02]} a5 {[%emt 0:00:15]} 29. Bd2 {[%emt 0:00:58]} Ba6 {[%emt 0:00:03]} 30. g4 {[%emt 0:02:03]} f6 {[%emt 0:00:45]} 31. Rdc1 {[%emt 0:03:41]} Rxc1 {[%emt 0:00:03]} 32. Rxc1 {[%emt 0:00:05]} Rxc1 {[%emt 0:00:14]} 33. Bxc1 {[%emt 0:00:01]} Kf7 {[%emt 0:01:06]} 34. Ba3 {[%emt 0:00:32]} Nc8 {[%emt 0:00:55]} 35. h4 {[%emt 0:01:03]} Nb8 {[%emt 0:00:47]} 36. Bg2 {[%emt 0:02:21]} b5 {[%emt 0:00:47]} 37. e4 {[%emt 0:01:50]} b4 {[%emt 0:00:21]} 38. Bc1 {[%emt 0:00:50]} Nc6 {[%emt 0:03:54]} 39. Ke3 {[%emt 0:01:33]} Nd6 {[%emt 0:00:20]} 40. Bb2 {[%emt 0:00:00]} Ne7 {[%emt 0:00:00]} 41. h5 {[%emt 0:05:36]} g6 {[%emt 0:03:38]} 42. hxg6+ {[%emt 0:02:42]} hxg6 {[%emt 0:00:02]} 43. Nd3 {[%emt 0:03:14]} Bxd3 {[%emt 0:04:59]} 44. Kxd3 {[%emt 0:00:01]} g5 {[%emt 0:01:38]} 45. Bf1 {[%emt 0:01:43]} Nb7 {[%emt 0:05:07]} 46. Bc1 {[%emt 0:00:44]} Nd8 {[%emt 0:01:36]} 47. Be3 {[%emt 0:03:33]} Ndc6 {[%emt 0:01:11]} 48. Kd2 {[%emt 0:00:52]} Ng6 {[%emt 0:02:29]} 49. Ba6 {[%emt 0:01:14]} Nge7 {[%emt 0:01:56]} 50. Bb5 {[%emt 0:01:24]} Kg6 {[%emt 0:00:24]} 51. Bf2 {[%emt 0:01:20]} Kf7 {[%emt 0:01:24]} 52. Kd3 {[%emt 0:00:40]} Kg6 {[%emt 0:05:06]} 53. Bg3 {[%emt 0:00:57]} Kf7 {[%emt 0:00:38]} 54. Bc7 {[%emt 0:01:29]} Kg6 {[%emt 0:02:50]} 55. Ke3 {[%emt 0:02:04]} f5 {[%emt 0:06:04]} 56. Bd6 {[%emt 0:04:22]} f4+ {[%emt 0:01:48]} 57. Kd3 {[%emt 0:00:06]} Kf7 {[%emt 0:00:21]} 58. Bc5 {[%emt 0:04:09]} Kf6 {[%emt 0:00:49]} 59. Kd2 {[%emt 0:01:28]} Kf7 {[%emt 0:00:07]} 60. Bd3 {[%emt 0:08:52]} Kf6 {[%emt 0:00:53]} 61. Ba6 {[%emt 0:01:04]} Kf7 {[%emt 0:00:31]} 62. Kd3 {[%emt 0:02:33]} Ke8 {[%emt 0:00:53]} 63. Bd6 {[%emt 0:02:11]} Kf7 {[%emt 0:01:19]} 64. Bb7 {[%emt 0:00:53]} Kf6 {[%emt 0:00:30]} 65. Bc7 {[%emt 0:02:20]} Kf7 {[%emt 0:00:35]} 66. Be5 {[%emt 0:00:31]} Kg6 {[%emt 0:00:25]} 67. Bc7 {[%emt 0:05:49]} Kf7 {[%emt 0:00:18]} 68. Bd6 {[%emt 0:00:13]} Kf6 {[%emt 0:00:26]} 69. Ba6 {[%emt 0:00:43]} Kf7 {[%emt 0:00:16]} 70. Bb5 {[%emt 0:01:00]} Kf6 {[%emt 0:00:23]} 71. Bc5 {[%emt 0:00:46]} Kf7 {[%emt 0:00:10]} 72. Bb6 {[%emt 0:05:55]} Kf6 {[%emt 0:00:29]} 73. Bc7 {[%emt 0:00:08]} Kf7 {[%emt 0:00:44]} 74. Bd6 {[%emt 0:00:08]} Kf6 {[%emt 0:00:26]} 75. Bc5 {[%emt 0:00:50]} Kf7 {[%emt 0:00:20]} 76. Bd6 {[%emt 0:01:11]} Kf6 {[%emt 0:00:12]} 77. Bc7 {[%emt 0:00:03]} Kf7 {[%emt 0:00:17]} 78. Be5 {[%emt 0:00:16]} Kg6 {[%emt 0:00:48]} 1/2-1/2

[Event "World Senior chT-50 2019"]
[Site "Rhodes"]
[Date "2019.04.16"]
[Round "1.38"]
[White "Hoehn, Michael"]
[Black "Kozlovskaya, Valentina"]
[Result "1/2-1/2"]
[ECO "B21"]
[WhiteElo "2040"]
[BlackElo "2161"]
[Annotator "NA"]
[PlyCount "140"]
[EventDate "2019.04.16"]
[EventType "team-tourn"]
[EventCountry "GRE"]
[SourceTitle "playchess.com"]
[Source "ChessBase"]
[SourceQuality "1"]
[WhiteTeam "Germany"]
[BlackTeam "Russia"]
[WhiteTeamCountry "GER"]
[BlackTeamCountry "RUS"]
[TimeControl "40/5400+30:1800+30"]

1. Nf3 {[%emt 0:00:00]} c5 {[%emt 0:00:00]} 2. e4 {[%emt 0:00:26]} e6 {[%emt 0:00:00]} 3. d4 {[%emt 0:00:22]} cxd4 {[%emt 0:00:00]} 4. c3 {[%emt 0:00:07]} d3 {[%emt 0:00:33]} 5. Bxd3 {[%emt 0:00:06]} d6 {[%emt 0:00:29]} 6. O-O {[%emt 0:00:47]} Be7 {[%emt 0:00:09]} 7. c4 {[%emt 0:02:15]} Nc6 {[%emt 0:00:54]} 8. Nc3 {[%emt 0:01:33]} Nf6 {[%emt 0:00:08]} 9. h3 {[%emt 0:01:25]} O-O {[%emt 0:00:08]} 10. Bf4 {[%emt 0:00:31]} e5 {[%emt 0:04:03]} 11. Bg5 {[%emt 0:02:57]} h6 {[%emt 0:00:12]} 12. Bxf6 {[%emt 0:01:11]} Bxf6 {[%emt 0:00:11]} 13. Qd2 {[%emt 0:03:09]} Be6 {[%emt 0:01:31]} 14. Be2 {[%emt 0:03:30]} a6 {[%emt 0:10:37]} 15. Nd5 {[%emt 0:09:24]} Bxd5 {[%emt 0:00:00]} 16. Qxd5 {[%emt 0:02:54]} Qe7 {[%emt 0:09:59]} 17. Rad1 {[%emt 0:08:12]} Rfd8 {[%emt 0:01:12]} 18. a3 {[%emt 0:00:27]} Qc7 {[%emt 0:00:00]} 19. b4 {[%emt 0:01:51]} Ne7 {[%emt 0:00:00]} 20. Qd2 {[%emt 0:00:31]} Ng6 {[%emt 0:00:00]} 21. g3 {[%emt 0:00:24]} a5 {[%emt 0:00:00]} 22. b5 {[%emt 0:02:41]} Nf8 {[%emt 0:00:17]} 23. Qb2 {[%emt 0:03:47]} Ne6 {[%emt 0:00:35]} 24. b6 {[%emt 0:00:56]} Qc6 {[%emt 0:03:54]} 25. Rd5 {[%emt 0:01:27]} Nc5 {[%emt 0:00:17]} 26. Nd2 {[%emt 0:05:27]} Bg5 {[%emt 0:04:10]} 27. f4 {[%emt 0:00:10]} Bf6 {[%emt 0:04:07]} 28. Qb5 {[%emt 0:08:02]} exf4 {[%emt 0:01:56]} 29. gxf4 {[%emt 0:00:36]} Bc3 {[%emt 0:03:25]} 30. Bf3 {[%emt 0:03:55]} Qxb5 {[%emt 0:09:52]} 31. cxb5 {[%emt 0:03:27]} Ne6 {[%emt 0:00:09]} 32. Bg4 {[%emt 0:03:14]} Bd4+ {[%emt 0:01:56]} 33. Kg2 {[%emt 0:00:31]} Bxb6 {[%emt 0:00:14]} 34. Nc4 {[%emt 0:00:37]} Bc5 {[%emt 0:01:40]} 35. a4 {[%emt 0:13:59]} b6 {[%emt 0:00:40]} 36. Rd3 {[%emt 0:02:43]} Rab8 {[%emt 0:08:50]} 37. Bxe6 {[%emt 0:04:46]} fxe6 {[%emt 0:00:02]} 38. Rfd1 {[%emt 0:00:10]} Rf8 {[%emt 0:08:42]} 39. Kg3 {[%emt 0:01:52]} g5 {[%emt 0:05:06]} 40. fxg5 {[%emt 0:00:00]} hxg5 {[%emt 0:00:00]} 41. Nxd6 {[%emt 0:01:11]} Rf4 {[%emt 0:01:09]} 42. Rf3 {[%emt 0:11:43]} Rd8 {[%emt 0:00:28]} 43. e5 {[%emt 0:00:04]} Rxa4 {[%emt 0:11:02]} 44. Rf6 {[%emt 0:00:39]} Be3 {[%emt 0:08:48]} 45. Rxe6 {[%emt 0:02:28]} Rb4 {[%emt 0:06:43]} 46. Kf3 {[%emt 0:05:41]} Bf4 {[%emt 0:02:46]} 47. Rg1 {[%emt 0:00:51]} Rf8 {[%emt 0:00:59]} 48. Ke2 {[%emt 0:08:45]} Rb2+ {[%emt 0:02:27]} 49. Kd3 {[%emt 0:00:12]} Rb3+ {[%emt 0:00:37]} 50. Ke4 {[%emt 0:00:33]} Rxh3 {[%emt 0:04:11]} 51. Nc4 {[%emt 0:01:38]} Rc3 {[%emt 0:06:07]} 52. Kd5 {[%emt 0:04:40]} Rd3+ {[%emt 0:04:43]} 53. Ke4 {[%emt 0:00:45]} Rc3 {[%emt 0:02:19]} 54. Kd4 {[%emt 0:00:35]} Rb3 {[%emt 0:02:04]} 55. Rxb6 {[%emt 0:00:50]} Rb4 {[%emt 0:01:42]} 56. Kc5 {[%emt 0:01:07]} Re8 {[%emt 0:02:47]} 57. e6 {[%emt 0:02:45]} Rxc4+ {[%emt 0:00:40]} 58. Kxc4 {[%emt 0:00:02]} Be3 {[%emt 0:00:01]} 59. Rxg5+ {[%emt 0:00:43]} Bxg5 {[%emt 0:00:01]} 60. Ra6 {[%emt 0:00:15]} Be3 {[%emt 0:00:24]} 61. Kd5 {[%emt 0:00:58]} Bd2 {[%emt 0:01:04]} 62. b6 {[%emt 0:00:16]} Kg7 {[%emt 0:00:41]} 63. Ra7+ {[%emt 0:00:23]} Kf6 {[%emt 0:00:14]} 64. Rf7+ {[%emt 0:00:08]} Kg6 {[%emt 0:00:01]} 65. Rf2 {[%emt 0:01:08]} Be3 {[%emt 0:00:19]} 66. Rb2 {[%emt 0:00:08]} Rd8+ {[%emt 0:01:59]} 67. Kc6 {[%emt 0:00:55]} Bxb6 {[%emt 0:00:06]} 68. Rxb6 {[%emt 0:00:08]} Kf6 {[%emt 0:00:07]} 69. Kc5 {[%emt 0:01:14]} Ke7 {[%emt 0:00:37]} 70. Ra6 {[%emt 0:00:11]} Rd2 {[%emt 0:00:15]} 1/2-1/2

[Event "World Senior chT-50 2019"]
[Site "Rhodes"]
[Date "2019.04.16"]
[Round "1.39"]
[White "Fatalibekova, Elena"]
[Black "Wolff, Peter"]
[Result "1/2-1/2"]
[ECO "B14"]
[WhiteElo "2148"]
[BlackElo "1893"]
[Annotator "NA"]
[PlyCount "78"]
[EventDate "2019.04.16"]
[EventType "team-tourn"]
[EventCountry "GRE"]
[SourceTitle "playchess.com"]
[Source "ChessBase"]
[SourceQuality "1"]
[WhiteTeam "Russia"]
[BlackTeam "Germany"]
[WhiteTeamCountry "RUS"]
[BlackTeamCountry "GER"]
[TimeControl "40/5400+30:1800+30"]

1. e4 {[%emt 0:00:00]} c6 {[%emt 0:00:00]} 2. d4 {[%emt 0:00:00]} d5 {[%emt 0:00:00]} 3. exd5 {[%emt 0:00:00]} cxd5 {[%emt 0:00:00]} 4. c4 {[%emt 0:00:00]} Nf6 {[%emt 0:00:09]} 5. Nc3 {[%emt 0:00:02]} Nc6 {[%emt 0:00:14]} 6. Bg5 {[%emt 0:00:17]} e6 {[%emt 0:01:27]} 7. c5 {[%emt 0:00:40]} Be7 {[%emt 0:00:24]} 8. Bb5 {[%emt 0:00:07]} O-O {[%emt 0:02:39]} 9. Nf3 {[%emt 0:00:39]} Ne4 {[%emt 0:02:23]} 10. Bxe7 {[%emt 0:00:25]} Nxe7 {[%emt 0:02:07]} 11. O-O {[%emt 0:00:40]} Bd7 {[%emt 0:02:00]} 12. Bd3 {[%emt 0:01:35]} f5 {[%emt 0:04:39]} 13. Ne5 {[%emt 0:01:03]} Be8 {[%emt 0:03:27]} 14. Rc1 {[%emt 0:05:22]} Nc6 {[%emt 0:04:46]} 15. Nxc6 {[%emt 0:00:20]} bxc6 {[%emt 0:01:15]} 16. f3 {[%emt 0:03:36]} Nxc3 {[%emt 0:05:25]} 17. bxc3 {[%emt 0:00:11]} Bd7 {[%emt 0:07:22]} 18. Rb1 {[%emt 0:03:08]} Qc7 {[%emt 0:04:07]} 19. Qe2 {[%emt 0:01:03]} Rab8 {[%emt 0:01:57]} 20. g3 {[%emt 0:03:12]} Rxb1 {[%emt 0:02:34]} 21. Rxb1 {[%emt 0:00:32]} Rb8 {[%emt 0:00:07]} 22. f4 {[%emt 0:02:35]} Rxb1+ {[%emt 0:01:01]} 23. Bxb1 {[%emt 0:00:02]} Qb8 {[%emt 0:01:38]} 24. Bd3 {[%emt 0:00:35]} g6 {[%emt 0:08:57]} 25. Qc2 {[%emt 0:00:58]} Kg7 {[%emt 0:01:28]} 26. Qb3 {[%emt 0:00:25]} Qc7 {[%emt 0:04:01]} 27. Kg2 {[%emt 0:03:23]} Kf6 {[%emt 0:00:36]} 28. Kf3 {[%emt 0:05:36]} Bc8 {[%emt 0:01:21]} 29. h3 {[%emt 0:00:55]} h5 {[%emt 0:03:28]} 30. a4 {[%emt 0:07:02]} Qb7 {[%emt 0:00:55]} 31. Qb4 {[%emt 0:02:37]} Ke7 {[%emt 0:03:09]} 32. Ke3 {[%emt 0:10:21]} Ke8 {[%emt 0:01:42]} 33. Be2 {[%emt 0:06:37]} Ke7 {[%emt 0:00:51]} 34. Qxb7+ {[%emt 0:08:21]} Bxb7 {[%emt 0:00:02]} 35. a5 {[%emt 0:00:58]} Bc8 {[%emt 0:02:45]} 36. c4 {[%emt 0:00:56]} Kf6 {[%emt 0:00:43]} 37. cxd5 {[%emt 0:03:23]} exd5 {[%emt 0:00:37]} 38. Kd2 {[%emt 0:00:45]} Ke7 {[%emt 0:00:59]} 39. Kc3 {[%emt 0:00:35]} Kf6 {[%emt 0:00:40]} 1/2-1/2

[Event "World Senior chT-50 2019"]
[Site "Rhodes"]
[Date "2019.04.16"]
[Round "1.40"]
[White "Theuer, Carsten"]
[Black "Titorenko, Natalia I"]
[Result "1/2-1/2"]
[ECO "B29"]
[WhiteElo "1868"]
[BlackElo "2153"]
[Annotator "NA"]
[PlyCount "63"]
[EventDate "2019.04.16"]
[EventType "team-tourn"]
[EventCountry "GRE"]
[SourceTitle "playchess.com"]
[Source "ChessBase"]
[SourceQuality "1"]
[WhiteTeam "Germany"]
[BlackTeam "Russia"]
[WhiteTeamCountry "GER"]
[BlackTeamCountry "RUS"]
[TimeControl "40/5400+30:1800+30"]

1. e4 {[%emt 0:00:00]} c5 {[%emt 0:00:00]} 2. Nf3 {[%emt 0:00:00]} Nf6 {[%emt 0:00:00]} 3. Nc3 {[%emt 0:00:00]} Nc6 {[%emt 0:00:00]} 4. d4 {[%emt 0:00:48]} d5 {[%emt 0:00:00]} 5. exd5 {[%emt 0:01:30]} Nxd5 {[%emt 0:00:18]} 6. Nxd5 {[%emt 0:01:44]} Qxd5 {[%emt 0:00:04]} 7. c3 {[%emt 0:00:11]} cxd4 {[%emt 0:03:30]} 8. Nxd4 {[%emt 0:02:18]} Nxd4 {[%emt 0:01:03]} 9. Qxd4 {[%emt 0:00:57]} Qxd4 {[%emt 0:00:20]} 10. cxd4 {[%emt 0:00:08]} Bd7 {[%emt 0:03:15]} 11. Bd3 {[%emt 0:01:47]} Bc6 {[%emt 0:07:24]} 12. O-O {[%emt 0:03:47]} e6 {[%emt 0:04:36]} 13. Be3 {[%emt 0:06:35]} Be7 {[%emt 0:01:30]} 14. Rfd1 {[%emt 0:04:24]} O-O {[%emt 0:00:21]} 15. f3 {[%emt 0:05:11]} Rfc8 {[%emt 0:21:39]} 16. Rac1 {[%emt 0:03:41]} Bd5 {[%emt 0:04:28]} 17. a3 {[%emt 0:01:40]} Bd6 {[%emt 0:03:50]} 18. Rxc8+ {[%emt 0:05:19]} Rxc8 {[%emt 0:00:01]} 19. Rc1 {[%emt 0:00:16]} Rxc1+ {[%emt 0:01:04]} 20. Bxc1 {[%emt 0:00:11]} f5 {[%emt 0:02:46]} 21. h3 {[%emt 0:02:55]} Kf7 {[%emt 0:02:04]} 22. Kf2 {[%emt 0:00:19]} Kf6 {[%emt 0:03:21]} 23. f4 {[%emt 0:02:18]} a6 {[%emt 0:06:43]} 24. Bd2 {[%emt 0:02:57]} Ke7 {[%emt 0:00:47]} 25. g3 {[%emt 0:08:52]} Kd7 {[%emt 0:02:13]} 26. Kf1 {[%emt 0:03:39]} Be7 {[%emt 0:02:52]} 27. Kf2 {[%emt 0:00:41]} Kc6 {[%emt 0:00:23]} 28. h4 {[%emt 0:02:53]} b5 {[%emt 0:02:33]} 29. Ba5 {[%emt 0:00:09]} Bc4 {[%emt 0:01:59]} 30. Bc2 {[%emt 0:00:19]} Bf6 {[%emt 0:06:01]} 31. Ke3 {[%emt 0:00:23]} Be7 {[%emt 0:02:23]} 32. Bd1 {[%emt 0:00:30]} 1/2-1/2

[Event "World Senior chT-50 2019"]
[Site "Rhodes"]
[Date "2019.04.17"]
[Round "2.7"]
[White "Arnason, Jon L"]
[Black "Grushka, Carlos"]
[Result "1-0"]
[ECO "C11"]
[WhiteElo "2423"]
[BlackElo "2251"]
[Annotator "NA RC"]
[PlyCount "55"]
[EventDate "2019.04.16"]
[EventType "team-tourn"]
[EventCountry "GRE"]
[SourceTitle "playchess.com"]
[Source "ChessBase"]
[SourceQuality "1"]
[WhiteTeam "Iceland"]
[BlackTeam "Argentina"]
[WhiteTeamCountry "ISL"]
[BlackTeamCountry "ARG"]
[TimeControl "40/5400+30:1800+30"]

1. e4 {[%emt 0:00:00]} e6 {[%emt 0:00:00]} 2. d4 {[%emt 0:00:00]} d5 {[%emt 0:00:00]} 3. Nd2 {[%emt 0:00:42]} Nf6 {[%emt 0:00:20]} 4. e5 {[%emt 0:00:14]} Nfd7 {[%emt 0:00:06]} 5. Ne2 {[%emt 0:01:17]} c5 {[%emt 0:00:19]} 6. c3 {[%emt 0:00:05]} Nc6 {[%emt 0:00:19]} 7. Nf3 {[%emt 0:00:12]} b5 {[%emt 0:06:43]} 8. a3 {[%emt 0:04:40] C11: French: Classical System: 4 e5 and 4 Bg5 dxe4} a5 {[%emt 0:00:13]} 9. Nf4 {[%emt 0:01:25]} Qb6 {[%emt 0:02:09]} (9... b4 10. axb4 cxb4 11. h4 h6 12. Bd3 Ba6 13. Nxe6 fxe6 14. Bg6+ Ke7 15. Ng5 hxg5 16. Bxg5+ {1-0 (35) Dominguez Perez,L (2739)-Meier,G (2628) chess.com INT 2018}) 10. Be3 {[%emt 0:09:13]} cxd4 {[%emt 0:05:28]} 11. cxd4 {[%emt 0:04:34]} Be7 $146 {[%emt 0:01:14]} ({Predecessor:} 11... b4 12. a4 Ba6 13. b3 Bxf1 14. Kxf1 Be7 15. h4 O-O-O {½-½ (69) Boidman,Y (2432)-Meyer,S (2150) Wiesbaden 2001}) 12. h4 {[%emt 0:03:06]} h6 {[%emt 0:08:24]} 13. Bd3 {[%emt 0:07:06]} b4 {[%emt 0:01:52]} 14. a4 {[%emt 0:12:43]} Ba6 {[%emt 0:01:37]} 15. O-O {[%emt 0:01:35]} g5 {[%emt 0:06:53]} 16. hxg5 {[%emt 0:02:08]} hxg5 {[%emt 0:00:52]} 17. Ne2 {[%emt 0:00:05]} Rg8 {[%emt 0:03:25]} 18. Rc1 {[%emt 0:03:39]} f5 {[%emt 0:05:45]} 19. exf6 {[%emt 0:02:10]} Bxf6 {[%emt 0:00:51]} 20. Ne5 {[%emt 0:02:47]} Bxe5 {[%emt 0:05:11]} 21. dxe5 {[%emt 0:00:06]} Qb7 {[%emt 0:00:21]} 22. Nd4 {[%emt 0:04:47]} Bxd3 {[%emt 0:11:53]} (22... Nxd4 $142 23. Qh5+ (23. Bxd4 Bxd3 24. Qxd3 Rg7 $18) 23... Kf8) 23. Rxc6 {[%emt 0:02:08]} Bf5 {[%emt 0:09:33]} 24. Qh5+ {[%emt 0:01:48]} Kf8 {[%emt 0:03:29]} 25. Rfc1 {[%emt 0:01:40]} Nxe5 {[%emt 0:01:11]} 26. Rc7 {[%emt 0:00:30]} Qb8 {[%emt 0:02:08]} 27. Nxe6+ {[%emt 0:00:14]} Bxe6 {[%emt 0:00:17]} 28. Bc5# {[%emt 0:00:55]} 1-0

[Event "World Senior chT-50 2019"]
[Site "Rhodes"]
[Date "2019.04.17"]
[Round "2.25"]
[White "Grant, Jonathan I M"]
[Black "Strutinskaia, Galina"]
[Result "0-1"]
[ECO "A13"]
[WhiteElo "2226"]
[BlackElo "2208"]
[Annotator "NA"]
[PlyCount "124"]
[EventDate "2019.04.16"]
[EventType "team-tourn"]
[EventCountry "GRE"]
[SourceTitle "playchess.com"]
[Source "ChessBase"]
[SourceQuality "1"]
[WhiteTeam "Scotland"]
[BlackTeam "Russia"]
[WhiteTeamCountry "SCO"]
[BlackTeamCountry "RUS"]
[TimeControl "40/5400+30:1800+30"]

1. c4 {[%emt 0:00:00]} e6 {[%emt 0:00:00]} 2. g3 {[%emt 0:00:13]} d5 {[%emt 0:00:00]} 3. Nf3 {[%emt 0:00:06]} dxc4 {[%emt 0:00:57]} 4. Bg2 {[%emt 0:00:14]} a6 {[%emt 0:04:23]} 5. Na3 {[%emt 0:06:31]} b5 {[%emt 0:01:24]} 6. O-O {[%emt 0:03:20]} Bb7 {[%emt 0:00:16]} 7. b3 {[%emt 0:06:32]} cxb3 {[%emt 0:01:39]} 8. axb3 {[%emt 0:00:50]} Nf6 {[%emt 0:04:27]} 9. Bb2 {[%emt 0:03:10]} Be7 {[%emt 0:01:03]} 10. Qc2 {[%emt 0:05:44]} Nbd7 {[%emt 0:03:59]} 11. Nd4 {[%emt 0:14:14]} Bxg2 {[%emt 0:00:57]} 12. Kxg2 {[%emt 0:00:30]} Nb6 {[%emt 0:04:00]} 13. Nc6 {[%emt 0:06:36]} Qd5+ {[%emt 0:01:42]} 14. f3 {[%emt 0:01:03]} Bc5 {[%emt 0:03:38]} 15. Rfc1 {[%emt 0:13:33]} Nbd7 {[%emt 0:03:40]} 16. Na5 {[%emt 0:01:58]} Rc8 {[%emt 0:03:11]} 17. e4 {[%emt 0:01:12]} Qh5 {[%emt 0:01:30]} 18. Nc6 {[%emt 0:09:48]} Bb6 {[%emt 0:09:34]} 19. d4 {[%emt 0:02:57]} Qg5 {[%emt 0:03:17]} ({Better is} 19... Ra8 $14) 20. Rf1 {[%emt 0:05:43]} O-O {[%emt 0:08:03]} 21. Ne7+ {[%emt 0:02:51]} Kh8 {[%emt 0:00:04]} 22. Nxc8 {[%emt 0:00:14]} Rxc8 {[%emt 0:00:01]} 23. b4 {[%emt 0:01:30]} Nh5 {[%emt 0:03:21]} 24. Qc1 {[%emt 0:01:09]} Qe7 {[%emt 0:01:53]} 25. Nc2 {[%emt 0:00:11]} Nb8 {[%emt 0:00:27]} 26. e5 {[%emt 0:03:08]} g6 {[%emt 0:01:29]} 27. Qe3 {[%emt 0:00:55]} Rd8 {[%emt 0:01:33]} 28. Qe4 {[%emt 0:00:51]} Kg8 {[%emt 0:00:23]} 29. Rfd1 {[%emt 0:01:02]} Ng7 {[%emt 0:00:45]} 30. g4 {[%emt 0:00:12]} Ne8 {[%emt 0:03:16]} 31. Bc3 {[%emt 0:01:52]} c6 {[%emt 0:00:26]} 32. Qf4 {[%emt 0:02:13]} Nc7 {[%emt 0:00:45]} 33. Ne3 {[%emt 0:00:14]} Nd5 {[%emt 0:01:22]} 34. Nxd5 {[%emt 0:00:03]} Rxd5 {[%emt 0:01:32]} 35. Kg3 {[%emt 0:00:53]} Bd8 {[%emt 0:00:34]} 36. Be1 {[%emt 0:00:51]} Qa7 {[%emt 0:01:48]} 37. h4 {[%emt 0:00:35]} Nd7 {[%emt 0:00:44]} 38. Rd2 {[%emt 0:02:20]} Be7 {[%emt 0:00:33]} 39. Rdd1 {[%emt 0:01:36]} Nxe5 {[%emt 0:02:36]} 40. Bf2 {[%emt 0:00:00]} Nd3 {[%emt 0:00:00]} 41. Qd2 {[%emt 0:06:25]} Nxf2 {[%emt 0:03:04]} 42. Qxf2 {[%emt 0:01:31]} Bxb4 {[%emt 0:01:21]} 43. Qb2 {[%emt 0:02:59]} a5 {[%emt 0:00:37]} 44. Kh3 {[%emt 0:00:26]} Qd7 {[%emt 0:00:35]} 45. Qc2 {[%emt 0:04:10]} a4 {[%emt 0:02:05]} 46. Rac1 {[%emt 0:01:43]} Ba3 {[%emt 0:00:09]} 47. Ra1 {[%emt 0:01:28]} Bd6 {[%emt 0:05:37]} 48. Rac1 {[%emt 0:00:41]} Bf4 {[%emt 0:00:13]} 49. Rb1 {[%emt 0:02:23]} Be3 {[%emt 0:06:56]} 50. Rd3 {[%emt 0:04:28]} Bxd4 {[%emt 0:00:30]} 51. Rc1 {[%emt 0:02:08]} c5 {[%emt 0:00:17]} 52. f4 {[%emt 0:02:18]} c4 {[%emt 0:04:34]} 53. Rf3 {[%emt 0:00:10]} h5 {[%emt 0:00:18]} 54. g5 {[%emt 0:01:43]} Qd6 {[%emt 0:07:20]} 55. Rd1 {[%emt 0:01:19]} a3 {[%emt 0:00:30]} 56. Rb1 {[%emt 0:01:42]} Bb2 {[%emt 0:01:24]} 57. Re1 {[%emt 0:03:06]} Rd3 {[%emt 0:00:42]} 58. Ree3 {[%emt 0:02:41]} Rxe3 {[%emt 0:00:53]} 59. Rxe3 {[%emt 0:00:01]} Qxf4 {[%emt 0:00:17]} 60. Re4 {[%emt 0:00:39]} Qf3+ {[%emt 0:00:58]} 61. Kh2 {[%emt 0:00:03]} Be5+ {[%emt 0:02:18]} 62. Kg1 {[%emt 0:00:06]} a2 {[%emt 0:00:11]} 0-1

[Event "World Senior chT-50 2019"]
[Site "Rhodes"]
[Date "2019.04.17"]
[Round "2.30"]
[White "Schulz, Petra"]
[Black "Hoehn, Michael"]
[Result "1-0"]
[ECO "C41"]
[WhiteElo "2051"]
[BlackElo "2040"]
[Annotator "NA RC"]
[PlyCount "73"]
[EventDate "2019.04.16"]
[EventType "team-tourn"]
[EventCountry "GRE"]
[SourceTitle "playchess.com"]
[Source "ChessBase"]
[SourceQuality "1"]
[WhiteTeam "Germany"]
[BlackTeam "Germany"]
[WhiteTeamCountry "GER"]
[BlackTeamCountry "GER"]
[TimeControl "40/5400+30:1800+30"]

1. e4 {[%emt 0:00:00]} d6 {[%emt 0:00:00]} 2. d4 {[%emt 0:00:00]} e5 {[%emt 0:00:11]} 3. Nf3 {[%emt 0:00:12]} exd4 {[%emt 0:02:00]} 4. Nxd4 {[%emt 0:00:06]} Nf6 {[%emt 0:00:12]} 5. Nc3 {[%emt 0:00:21]} Be7 {[%emt 0:00:41]} 6. g3 {[%emt 0:00:52]} d5 {[%emt 0:11:12]} 7. e5 {[%emt 0:02:33]} Ne4 {[%emt 0:04:15]} 8. Nxe4 {[%emt 0:05:34]} dxe4 {[%emt 0:00:52]} 9. Be3 {[%emt 0:00:38]} c5 {[%emt 0:21:52]} 10. Nb5 {[%emt 0:17:10]} Qb6 {[%emt 0:06:29]} 11. a4 {[%emt 0:14:53]} O-O {[%emt 0:04:48]} 12. Qd5 {[%emt 0:07:44]} Qc6 {[%emt 0:07:35]} 13. Qxc6 {[%emt 0:05:40]} Nxc6 {[%emt 0:00:12]} 14. Nc7 {[%emt 0:00:07]} Bg4 {[%emt 0:08:40]} 15. Nxa8 {[%emt 0:01:29]} Bf3 {[%emt 0:00:26]} 16. Rg1 {[%emt 0:00:05]} Rxa8 {[%emt 0:00:05]} 17. Be2 {[%emt 0:02:06]} Nxe5 {[%emt 0:00:25]} 18. Rd1 {[%emt 0:04:36]} b6 {[%emt 0:05:46]} 19. Rd5 {[%emt 0:02:56]} Bf6 {[%emt 0:01:01]} 20. c3 {[%emt 0:02:10]} c4 {[%emt 0:03:58]} 21. Kd2 {[%emt 0:08:10]} h6 {[%emt 0:03:08]} 22. Ra1 {[%emt 0:04:27]} Rb8 {[%emt 0:02:40]} 23. h4 {[%emt 0:07:25]} a6 {[%emt 0:00:57]} 24. Bxf3 {[%emt 0:04:05]} Nxf3+ {[%emt 0:00:29]} 25. Ke2 {[%emt 0:00:06]} b5 {[%emt 0:01:20]} 26. axb5 {[%emt 0:00:07]} axb5 {[%emt 0:00:03]} 27. Bf4 {[%emt 0:00:23]} Rb7 {[%emt 0:00:10]} 28. Ra8+ {[%emt 0:00:42]} Kh7 {[%emt 0:00:07]} 29. Re8 {[%emt 0:00:32]} b4 {[%emt 0:03:49]} 30. Rxe4 {[%emt 0:03:19]} bxc3 {[%emt 0:00:09]} 31. bxc3 {[%emt 0:00:11]} Ng1+ {[%emt 0:00:12]} 32. Kf1 {[%emt 0:01:31]} Rb1+ {[%emt 0:01:39]} 33. Kg2 {[%emt 0:01:25]} Bxc3 {[%emt 0:00:27]} 34. Rc5 {[%emt 0:01:12]} Bf6 {[%emt 0:02:02]} 35. Rcxc4 {[%emt 0:00:11]} g5 {[%emt 0:00:36]} 36. Bc1 {[%emt 0:00:43]} gxh4 {[%emt 0:01:21]} 37. gxh4 {[%emt 0:00:52]} 1-0